bitfinex-derivatives/quotes_ETHF0:USTF0_20250518
["timestamp","ask_amount","ask_price","bid_price","bid_amount"]
[1747548393929,0.79679,2509.3,2509.2,1.2494]
[1747548394331,0.79674,2509.5,2509.3,0.79678]
[1747548395030,0.79674,2509.5,2509.3,1.2494]
[1747548395239,0.79674,2509.5,2509.3,4.3074]
[1747548395443,0.79676,2509.4,2509.3,4.3074]
[1747548397232,2.6217,2509.7,2509.3,4.3074]
[1747548398239,0.79676,2509.4,2509.3,4.3074]
[1747548402840,0.79676,2509.4,2509.3,3.058]
[1747548404242,0.79676,2509.4,2509.3,3.85479]
[1747548404436,0.79674,2509.5,2509.3,3.85479]
[1747548404638,0.79672,2509.6,2509.4,2.07454]
[1747548404838,0.79672,2509.5,2509.4,1.2778]
[1747548405342,0.79672,2509.5,2509.4,4.3358]
[1747548405537,0.79671,2509.6,2509.4,5.13254]
[1747548405938,0.79672,2509.5,2509.4,4.3358]
[1747548407743,0.79672,2509.5,2509.4,3.058]
[1747548408445,0.79672,2509.5,2509.4,3.85474]
[1747548409243,0.79672,2509.5,2509.4,3.058]
[1747548410044,0.79672,2509.5,2509.4,4.4274]
[1747548410844,0.79672,2509.5,2509.4,5.22416]
[1747548411442,0.79672,2509.5,2509.4,4.4274]
[1747548411947,0.79672,2509.5,2509.4,4.51958003]
[1747548412435,0.79672,2509.5,2509.4,5.31634003]
[1747548412635,0.79671,2509.6,2509.4,4.51958003]
[1747548413339,0.79671,2509.6,2509.4,5.31631003]
[1747548413944,0.79671,2509.6,2509.4,5.22413]
[1747548414247,0.79671,2509.6,2509.5,0.79672]
[1747548414447,0.79671,2509.6,2509.5,2.10452]
[1747548415247,0.79671,2509.6,2509.5,5.16252]
[1747548416446,0.79671,2509.6,2509.5,4.3658]
[1747548416944,2.11521,2509.6,2509.5,4.3658]
[1747548417342,2.11521,2509.6,2509.5,3.058]
[1747548419349,2.11521,2509.6,2509.5,4.3008]
[1747548419852,1.3356,2509.7,2509.5,4.3008]
[1747548420044,1.3356,2509.7,2509.6,1.2554]
[1747548420350,1.3356,2509.7,2509.6,2.05209]
[1747548420543,2.13226,2509.7,2509.6,1.2554]
[1747548420940,3.49836,2509.7,2509.6,1.2554]
[1747548421141,3.49836,2509.7,2509.6,2.38537884]
[1747548421445,3.49836,2509.7,2509.6,1.12997884]
[1747548423046,2.7017,2509.7,2509.6,1.92666884]
[1747548423641,1.3356,2509.7,2509.6,3.16646884]
[1747548424651,2.13226,2509.7,2509.6,2.36977884]
[1747548425050,3.46796,2509.7,2509.6,2.36977884]
[1747548425845,3.2078,2509.8,2509.7,0.79666]
[1747548426048,3.2078,2509.8,2509.7,2.11546]
[1747548426349,4.00443,2509.8,2509.7,1.3188]
[1747548426540,0.79666,2509.7,2509.6,0.09218003]
[1747548426742,2.81846,2509.7,2509.6,0.09218003]
[1747548427245,2.81846,2509.7,2509.5,5.17351]
[1747548427442,2.81846,2509.7,2509.6,1.3188]
[1747548427646,2.0218,2509.7,2509.6,2.11549]
[1747548427948,0.6581,2509.7,2509.6,3.24714398]
[1747548428151,0.6581,2509.7,2509.6,3.33932401]
[1747548428340,0.79661,2509.9,2509.7,0.79666]
[1747548428539,1.46791,2509.9,2509.8,0.79663]
[1747548428741,1.46791,2509.9,2509.7,2.05594]
[1747548429148,1.46791,2509.9,2509.8,3.058]
[1747548429345,1.42665,2510.1,2509.8,4.3173]
[1747548429545,3.2078,2510.2,2510.1,0.79653]
[1747548429745,3.17192709,2510.4,2510.3,0.79647]
[1747548430049,3.17192709,2510.4,2510.3,17.56047]
[1747548430652,3.17192709,2510.4,2510.3,19.9490077]
[1747548431044,3.17192709,2510.4,2510.3,23.0070077]
[1747548431450,3.96836709,2510.4,2510.3,22.2105377]
[1747548431650,3.96836709,2510.4,2510.3,13.8365377]
[1747548431850,4.61306709,2510.4,2510.3,13.8365377]
[1747548432857,0.6447,2510.4,2510.3,12.7073]
[1747548433748,1.44114,2510.4,2510.3,12.7073]
[1747548434452,0.6447,2510.4,2510.3,12.7073]
[1747548435058,0.6447,2510.4,2510.3,13.50377]
[1747548437658,1.44114,2510.4,2510.3,12.7073]
[1747548437862,1.44114,2510.4,2510.3,21.0723]
[1747548438158,2.81554,2510.4,2510.3,21.0723]
[1747548439256,2.81554,2510.4,2510.3,3.058]
[1747548441564,11.02334,2510.4,2510.3,2.0265]
[1747548441754,0.79657,2510.0,2509.9,1.17481509]
[1747548441949,4.00437,2510.0,2509.9,1.17481509]
[1747548443066,0.79661,2509.9,2509.7,0.79666]
[1747548443256,4.00438,2510.0,2509.8,2.09873]
[1747548443562,0.7966,2509.9,2509.8,1.3021]
[1747548443854,2.7975,2509.9,2509.8,1.3021]
[1747548444164,2.7975,2509.9,2509.8,3.058]
[1747548448165,0.79666,2509.7,2509.6,3.2078]
[1747548448659,0.79673,2509.5,2509.4,9.6955]
[1747548449169,0.79673,2509.5,2509.4,12.7535]
[1747548449354,0.6563,2509.5,2509.4,13.55026]
[1747548450167,1.45302,2509.5,2509.4,12.7535]
[1747548450360,0.6563,2509.5,2509.4,13.55026]
[1747548451067,1.45303,2509.5,2509.4,12.7535]
[1747548451271,1.45303,2509.5,2509.4,4.3895]
[1747548451464,1.45303,2509.5,2509.4,3.058]
[1747548452162,0.79679,2509.3,2509.2,3.2078]
[1747548452563,0.79679,2509.3,2509.1,1.17481509]
[1747548452564,0.79682,2509.2,2509.1,1.17481509]
[1747548452763,2.16192,2509.2,2509.1,1.17481509]
[1747548453071,7.16192,2509.2,2509.1,1.17481509]
[1747548453567,0.79685,2509.1,2509.0,3.058]
[1747548453762,2.14685,2509.1,2509.0,3.058]
[1747548454272,0.79688,2509.0,2508.9,3.058]
[1747548454569,6.63688,2509.0,2508.9,3.058]
[1747548458165,3.42908,2509.0,2508.9,3.058]
[1747548461871,6.63688,2509.0,2508.9,3.058]
[1747548464188,0.79692,2508.9,2508.8,3.058]
[1747548464473,2.11432,2508.9,2508.8,3.058]
[1747548465873,18.82832,2508.9,2508.8,3.058]
[1747548466272,0.79698,2508.7,2508.6,0.00790696]
[1747548467474,0.79698,2508.7,2508.6,1.36250696]
[1747548468281,0.79698,2508.7,2508.6,1.3546]
[1747548469778,0.79698,2508.7,2508.6,1.44678003]
[1747548470575,0.79698,2508.7,2508.6,1.45444708]
[1747548475681,4.00478,2508.7,2508.6,0.09984708]
[1747548476088,4.00478,2508.7,2508.6,1.34734708]
[1747548477879,4.00478,2508.7,2508.6,0.09984708]
[1747548480277,4.00478,2508.7,2508.6,1.45004708]
[1747548480476,0.79698,2508.7,2508.6,1.45004708]
[1747548482692,0.79698,2508.7,2508.6,2.58249459]
[1747548483991,0.79698,2508.7,2508.6,1.23229459]
[1747548484192,4.00478,2508.7,2508.6,1.23229459]
[1747548484585,0.79698,2508.7,2508.6,0.09984708]
[1747548484784,0.79698,2508.7,2508.6,1.44244708]
[1747548485386,0.79698,2508.7,2508.6,2.10544708]
[1747548486786,0.79698,2508.7,2508.6,1.44244708]
[1747548489694,4.00478,2508.7,2508.6,0.09984708]
[1747548490195,4.00478,2508.7,2508.6,1.36444708]
[1747548490592,4.00478,2508.7,2508.6,0.09984708]
[1747548491096,3.2078,2508.7,2508.6,0.09984708]
[1747548491297,1.3026,2508.9,2508.6,0.09984708]
[1747548491596,1.3026,2508.9,2508.6,1.36444708]
[1747548491789,1.3026,2508.9,2508.7,0.6203]
[1747548491990,1.2822,2509.0,2508.8,1.2646]
[1747548492294,0.79692,2508.9,2508.8,1.2646]
[1747548493299,0.79692,2508.9,2508.8,4.3226]
[1747548494797,0.79692,2508.9,2508.8,3.058]
[1747548495196,2.05662,2508.9,2508.8,3.058]
[1747548496203,0.79699,2508.7,2508.6,0.09984708]
[1747548497592,0.79699,2508.7,2508.6,1.36444708]
[1747548503705,2.09569,2508.7,2508.6,1.36444708]
[1747548505201,2.09569,2508.7,2508.6,0.09984708]
[1747548509012,0.79699,2508.7,2508.6,1.36544708]
[1747548516209,0.79702,2508.6,2508.5,2.0534]
[1747548516418,1.44952,2508.6,2508.5,2.0534]
[1747548516914,1.44952,2508.6,2508.5,1e-08]
[1747548517311,0.79711,2508.2,2508.1,1.17481509]
[1747548517908,1.44961,2508.2,2508.1,1.17481509]
[1747548519616,1.44961,2508.2,2508.1,2.54281509]
[1747548521717,1.44961,2508.2,2508.1,1.368]
[1747548524621,0.79716,2508.1,2508.0,3.058]
[1747548524819,1.45926,2508.1,2508.0,3.058]
[1747548528523,0.79716,2508.1,2508.0,4.4085]
[1747548528823,0.79716,2508.1,2508.0,5.0596]
[1747548529524,0.79716,2508.1,2508.0,5.15178003]
[1747548538834,0.79716,2508.1,2508.0,6.28687054]
[1747548539334,0.79707,2508.4,2508.0,15.61089921]
[1747548539535,0.79707,2508.4,2508.2,4.00491]
[1747548539734,0.79707,2508.4,2508.3,9.5701]
[1747548539927,0.79707,2508.4,2508.3,11.019]
[1747548540128,0.79707,2508.4,2508.3,13.2799]
[1747548541235,0.79707,2508.4,2508.3,14.41499051]
[1747548541933,0.79707,2508.4,2508.3,22.70199051]
[1747548542928,0.79707,2508.4,2508.3,6.11799051]
[1747548543129,0.79707,2508.4,2508.3,22.70099051]
[1747548545839,0.79707,2508.4,2508.3,22.79317054]
[1747548547141,0.79707,2508.4,2508.3,14.50617054]
[1747548547335,0.79707,2508.4,2508.3,22.78917054]
[1747548547736,0.79707,2508.4,2508.3,6.21017054]
[1747548548736,0.79707,2508.4,2508.3,3.15018003]
[1747548548938,2.14367,2508.4,2508.3,3.15018003]
[1747548553140,0.79707,2508.4,2508.3,3.15018003]
[1747548553340,0.79707,2508.4,2508.3,5.03678003]
[1747548554346,0.79707,2508.4,2508.3,4.40928003]
[1747548554545,2.11827,2508.4,2508.3,3.15018003]
[1747548555135,5.32607,2508.4,2508.3,3.15018003]
[1747548558135,5.32607,2508.4,2508.3,0.09218003]
[1747548561146,5.32607,2508.4,2508.3,3.15018003]
[1747548562255,5.32607,2508.4,2508.3,0.09218003]
[1747548563256,5.32607,2508.4,2508.3,3.15018003]
[1747548570361,5.32607,2508.4,2508.3,0.09218003]
[1747548570963,4.00487,2508.4,2508.3,0.09218003]
[1747548571160,4.00487,2508.4,2508.3,3.15018003]
[1747548571361,5.33117,2508.4,2508.3,3.15018003]
[1747548572958,0.79705,2508.5,2508.3,3.15018003]
[1747548573161,0.79705,2508.5,2508.4,1.3158]
[1747548573363,0.79705,2508.5,2508.4,1.9893]
[1747548573555,0.79705,2508.5,2508.4,2.6267]
[1747548574161,0.79705,2508.5,2508.4,5.6847]
[1747548575167,0.79705,2508.5,2508.4,5.77688003]
[1747548575771,0.79705,2508.5,2508.4,6.9097881]
[1747548578767,0.79703,2508.6,2508.4,7.7068581]
[1747548578958,0.79703,2508.6,2508.5,1.2712]
[1747548580268,0.79703,2508.6,2508.5,4.3292]
[1747548587077,1.44933,2508.6,2508.5,4.3292]
[1747548587868,2.77953,2508.6,2508.5,4.3292]
[1747548589076,2.77953,2508.6,2508.5,3.058]
[1747548591383,2.77953,2508.6,2508.5,3.15018003]
[1747548592579,7.77953,2508.6,2508.5,1.41149219]
[1747548593073,7.77953,2508.6,2508.5,0.09218003]
[1747548593378,24.27653,2508.6,2508.5,0.09218003]
[1747548594081,24.27653,2508.6,2508.5,3.15018003]
[1747548595081,0.79716,2508.1,2508.0,1.2764]
[1747548595779,3.41796,2508.1,2508.0,1.2764]
[1747548596183,3.41796,2508.1,2508.0,4.3344]
[1747548597384,6.62576,2508.1,2508.0,3.058]
[1747548598174,0.79726,2507.8,2507.7,1.27]
[1747548604088,0.79729,2507.7,2507.6,3.058]
[1747548604288,0.79732,2507.6,2507.5,1.3303]
[1747548604481,1.44282,2507.6,2507.5,1.42248003]
[1747548605182,1.44282,2507.6,2507.5,4.48048003]
[1747548605583,1.44282,2507.6,2507.5,4.3883]
[1747548606188,0.79735,2507.5,2507.4,3.2078]
[1747548607082,0.79735,2507.5,2507.4,6.2658]
[1747548607489,0.79735,2507.5,2507.4,7.5874]
[1747548609192,4.00515,2507.5,2507.4,1.3216]
[1747548609483,5.28945,2507.5,2507.4,1.3216]
[1747548610886,0.79745,2507.2,2507.1,0.6716]
[1747548611591,0.6455,2507.6,2507.1,1.46907]
[1747548611792,0.79741,2507.4,2507.1,1.46907]
[1747548612088,0.79744,2507.3,2507.1,0.6716]
[1747548612289,0.79744,2507.3,2507.2,1.3023]
[1747548613494,0.79742,2507.3,2507.2,1.3023]
[1747548614194,0.7974,2507.4,2507.2,2.09975]
[1747548614390,0.7974,2507.4,2507.3,2.0358]
[1747548615194,0.7974,2507.4,2507.3,5.0938]
[1747548620497,0.7974,2507.4,2507.3,4.4325]
[1747548621297,2.8406,2507.4,2507.3,4.4325]
[1747548623701,2.8406,2507.4,2507.3,4.52468003]
[1747548624899,2.8406,2507.4,2507.3,3.15018003]
[1747548625400,2.8406,2507.4,2507.3,0.09218003]
[1747548626094,2.8406,2507.4,2507.3,3.15018003]
[1747548628298,7.8406,2507.4,2507.3,2.12135003]
[1747548628498,2.8406,2507.4,2507.3,1.29754003]
[1747548628803,2.8406,2507.4,2507.3,1.38972006]
[1747548629101,7.8406,2507.4,2507.3,0.09218003]
[1747548629489,2.8406,2507.4,2507.3,0.09218003]
[1747548629702,7.8406,2507.4,2507.3,0.09218003]
[1747548630002,7.8406,2507.4,2507.3,3e-08]
[1747548630902,11.01252709,2507.4,2507.3,3e-08]
[1747548631103,14.07052709,2507.4,2507.3,3e-08]
[1747548632306,11.01252709,2507.4,2507.3,3e-08]
[1747548633209,22.46352709,2507.4,2507.3,3e-08]
[1747548633902,0.79758,2506.8,2506.7,1.9773]
[1747548634103,0.79758,2506.8,2506.7,3.11359649]
[1747548634903,0.79758,2506.8,2506.7,1.9773]
[1747548635498,0.79758,2506.8,2506.7,1.3376]
[1747548639110,1.8983,2506.9,2506.4,3.8385]
[1747548639410,1.8983,2506.9,2506.5,1.257]
[1747548639411,0.79764,2506.6,2506.5,1.257]
[1747548640100,0.79764,2506.6,2506.5,4.315]
[1747548645207,0.79764,2506.6,2506.5,1.257]
[1747548646106,0.79764,2506.6,2506.5,4.315]
[1747548650321,0.79764,2506.6,2506.5,1.257]
[1747548658620,0.79764,2506.6,2506.5,2.39483029]
[1747548672627,1.2698,2506.8,2506.5,2.39483029]
[1747548672835,1.2698,2506.8,2506.6,1.2735]
[1747548673334,1.2698,2506.8,2506.7,0.79761]
[1747548673630,2.06738,2506.8,2506.7,0.6313]
[1747548673830,2.06738,2506.8,2506.7,2.70241]
[1747548674630,0.6413,2506.9,2506.7,1.9048]
[1747548674937,0.79758,2506.8,2506.7,0.6313]
[1747548676135,2.78406,2506.9,2506.7,1.42889]
[1747548676335,2.78406,2506.9,2506.7,2.56749539]
[1747548677435,2.78406,2506.9,2506.8,1.13860539]
[1747548678034,1.9865,2506.9,2506.8,1.13860539]
[1747548678228,3.8643,2507.0,2506.8,1.13860539]
[1747548678433,3.2078,2507.0,2506.9,0.79755]
[1747548678633,3.2078,2507.0,2506.9,1.47935]
[1747548679134,3.2078,2507.0,2506.9,3.85555]
[1747548679335,3.2078,2507.0,2506.9,4.99415539]
[1747548680336,2.13839,2507.1,2506.9,4.99415539]
[1747548680530,2.13839,2507.1,2506.9,3.85555]
[1747548681338,1.3409,2507.1,2507.0,0.79751]
[1747548681730,2.13839,2507.1,2506.9,3.85553]
[1747548682138,2.13839,2507.1,2506.9,0.79753]
[1747548683136,2.13839,2507.1,2506.9,3.85553]
[1747548684336,0.6278,2507.2,2506.9,3.058]
[1747548684638,0.6278,2507.2,2507.1,0.79748]
[1747548686535,1.42525,2507.2,2507.1,1.13964125]
[1747548686736,2.77485,2507.2,2507.1,1.13964125]
[1747548687543,7.77485,2507.2,2507.1,1.13964125]
[1747548688035,2.77485,2507.2,2507.1,1.13964125]
[1747548690741,2.77486,2507.2,2507.0,2.0987]
[1747548691442,2.77486,2507.2,2507.1,1.3012]
[1747548693540,1.45613,2507.3,2507.1,2.09868]
[1747548693741,1.45613,2507.3,2507.1,2.77788]
[1747548694037,1.45613,2507.3,2507.2,1.3461]
[1747548695642,1.45612,2507.3,2507.2,1.3461]
[1747548697644,0.6587,2507.3,2507.2,2.14355]
[1747548697845,0.6597,2507.5,2507.2,1.3461]
[1747548698147,0.6597,2507.5,2507.3,5.3226]
[1747548698348,1.45705,2507.5,2507.4,1.3174]
[1747548698749,0.79739,2507.4,2507.3,1.13743726]
[1747548698945,2.05779,2507.4,2507.3,1.13743726]
[1747548699658,0.79745,2507.2,2507.1,17.6454]
[1747548699850,0.79745,2507.2,2507.1,18.44288]
[1747548700044,2.11624,2507.3,2507.1,18.44288]
[1747548700347,0.6459,2507.2,2507.1,18.44288]
[1747548701053,0.6459,2507.2,2507.1,2.09888]
[1747548701559,1.3188,2507.3,2507.2,0.79745]
[1747548701861,1.3188,2507.3,2507.2,2.09885]
[1747548702360,2.11622,2507.3,2507.2,1.3014]
[1747548702564,2.11622,2507.3,2507.2,2.43908259]
[1747548703266,1.3188,2507.3,2507.2,2.43908259]
[1747548703461,0.6459,2507.5,2507.2,2.43908259]
[1747548703763,1.44325,2507.5,2507.3,2.0969]
[1747548703961,1.44325,2507.5,2507.4,1.2995]
[1747548704166,0.6459,2507.5,2507.4,2.09689]
[1747548704556,1.2961,2507.7,2507.6,0.79732]
[1747548704756,0.6237,2507.8,2507.6,0.79732]
[1747548705056,0.79729,2507.7,2507.5,0.79733]
[1747548705252,2.09339,2507.7,2507.5,3.85533]
[1747548705663,2.09339,2507.7,2507.6,1.13768259]
[1747548707162,0.79739,2507.4,2507.3,16.337]
[1747548708266,0.79739,2507.4,2507.3,3.058]
[1747548708562,2.12419,2507.4,2507.3,4.19507283]
[1747548709061,2.80129,2507.4,2507.3,4.19507283]
[1747548709259,2.80129,2507.4,2507.3,1.13707283]
[1747548710465,0.79745,2507.2,2507.0,21.51311509]
[1747548711168,1.45685,2507.2,2507.1,0.79748]
[1747548712165,1.45685,2507.2,2507.1,1.9347854]
[1747548712566,0.6594,2507.2,2507.1,1.9347854]
[1747548713760,1.45685,2507.2,2507.1,1.1373054]
[1747548714365,1.45685,2507.2,2507.1,1.9347854]
[1747548714567,0.6594,2507.2,2507.1,1.9347854]
[1747548715070,0.6771,2507.4,2507.1,1.1373054]
[1747548715266,0.79736,2507.5,2507.3,0.79739]
[1747548716267,0.79736,2507.5,2507.3,3.85539]
[1747548716870,0.79736,2507.5,2507.4,0.79739]
[1747548717169,0.79736,2507.5,2507.4,3.85539]
[1747548717372,0.79736,2507.5,2507.4,3.058]
[1747548718572,0.79736,2507.5,2507.4,3.85539]
[1747548718772,0.79736,2507.5,2507.4,3.058]
[1747548719266,3.2078,2507.7,2507.4,3.058]
[1747548719461,1.2867,2507.8,2507.6,0.79732]
[1747548719671,0.6204,2507.8,2507.7,0.6228]
[1747548720175,0.79725,2507.9,2507.7,1.42009]
[1747548720377,0.79725,2507.9,2507.8,1.2788]
[1747548720570,3.8918,2508.1,2507.8,1.2788]
[1747548720772,0.79721,2508.0,2507.8,2.07604]
[1747548720971,0.79721,2508.0,2507.9,1.2556]
[1747548721170,0.79723,2507.9,2507.8,11.205]
[1747548722174,0.79723,2507.9,2507.8,3.058]
[1747548722473,0.79723,2507.9,2507.8,4.19556803]
[1747548723081,0.79723,2507.9,2507.8,1.13756803]
[1747548725775,0.79726,2507.8,2507.7,1.2556]
[1747548725975,1.46856,2507.8,2507.7,1.2556]
[1747548727475,1.46856,2507.8,2507.7,2.39174245]
[1747548730981,0.6713,2507.8,2507.7,3.18903245]
[1747548731277,0.79724,2507.9,2507.7,3.18903245]
[1747548731477,0.79724,2507.9,2507.8,4.5729]
[1747548731779,0.79724,2507.9,2507.8,5.70904245]
[1747548732082,0.79724,2507.9,2507.8,8.76704245]
[1747548733182,2.03714,2507.9,2507.8,5.55924245]
[1747548733482,2.03714,2507.9,2507.8,4.19414245]
[1747548734385,2.03714,2507.9,2507.8,3.058]
[1747548738483,0.79724,2507.9,2507.8,4.3725]
[1747548738684,0.79724,2507.9,2507.8,5.0369]
[1747548740188,0.79724,2507.9,2507.8,6.17380039]
[1747548741490,0.79724,2507.9,2507.8,5.50940039]
[1747548741683,2.11164,2507.9,2507.8,5.50940039]
[1747548742084,2.11164,2507.9,2507.8,4.19490039]
[1747548742287,2.11164,2507.9,2507.8,1.13690039]
[1747548742991,0.79732,2507.6,2507.5,5.62161509]
[1747548743192,0.79732,2507.6,2507.5,4.38261509]
[1747548744194,2.11322,2507.6,2507.5,4.38261509]
[1747548744895,2.11322,2507.6,2507.5,4.34544989]
[1747548745989,0.79728,2507.8,2507.6,0.7973]
[1747548746191,0.79728,2507.8,2507.6,1.4377]
[1747548746494,0.79728,2507.8,2507.7,1.13764989]
[1747548746993,1.2577,2507.9,2507.7,1.93492989]
[1747548746994,2.05495,2507.9,2507.7,1.93492989]
[1747548747194,1.3289,2508.0,2507.8,3.2078]
[1747548747387,0.79723,2507.9,2507.8,3.2078]
[1747548748093,0.79723,2507.9,2507.8,6.2658]
[1747548748394,0.79723,2507.9,2507.8,7.49562992]
[1747548748689,0.79723,2507.9,2507.8,8.29288992]
[1747548748991,0.6423,2508.0,2507.9,0.79723]
[1747548749587,0.79717,2508.1,2507.9,1.13764989]
[1747548749788,0.79717,2508.1,2507.9,2.55735989]
[1747548750089,2.0369,2508.2,2507.9,4.81814989]
[1747548750292,0.79718,2508.1,2507.9,5.61535989]
[1747548750692,2.0369,2508.2,2507.9,4.81814989]
[1747548750887,0.7972,2508.0,2507.9,4.81814989]
[1747548751891,2.15638,2508.1,2507.9,6.79019498]
[1747548752696,0.7972,2508.0,2507.9,5.99296498]
[1747548753295,1.47485,2508.2,2508.0,0.79719]
[1747548753892,0.6777,2508.2,2507.9,6.65246498]
[1747548754095,1.48323,2508.3,2508.1,0.79715]
[1747548755595,0.79715,2508.2,2508.0,8.15789087]
[1747548756296,1.48322,2508.3,2508.1,1.93470594]
[1747548756495,0.6861,2508.3,2508.2,0.79714]
[1747548756803,2.17099,2508.4,2508.2,1.43784]
[1747548757198,2.84069,2508.4,2508.2,1.43784]
[1747548757394,2.0436,2508.4,2508.3,0.7971]
[1747548758095,2.0436,2508.4,2508.3,3.8551]
[1747548758299,1.44386,2508.5,2508.3,3.8551]
[1747548758697,1.44386,2508.5,2508.3,4.99265594]
[1747548759195,0.79707,2508.4,2508.3,4.19555594]
[1747548759396,2.83517,2508.4,2508.3,4.19555594]
[1747548760197,2.83517,2508.4,2508.3,5.46805594]
[1747548761802,2.83517,2508.4,2508.3,4.19555594]
[1747548763093,2.83517,2508.4,2508.3,5.54345594]
[1747548764194,2.83517,2508.4,2508.3,4.4059]
[1747548764497,1.46677,2508.4,2508.3,4.4059]
[1747548766804,1.3617,2508.7,2508.3,8.74422827]
[1747548767103,2.15869,2508.7,2508.4,22.15925]
[1747548767306,2.15871,2508.7,2508.5,2.07514]
[1747548767506,2.15871,2508.7,2508.6,1.2781]
[1747548769009,1.3617,2508.7,2508.6,2.07511]
[1747548770608,1.3617,2508.7,2508.6,2.16729003]
[1747548771200,2.15868,2508.7,2508.6,1.37028003]
[1747548771402,1.3617,2508.7,2508.6,1.37028003]
[1747548771603,1.3617,2508.7,2508.6,2.16729003]
[1747548772204,2.15868,2508.7,2508.6,1.37028003]
[1747548772908,1.3617,2508.7,2508.6,2.16729003]
[1747548773105,2.11642,2508.9,2508.7,0.79696]
[1747548773304,0.79694,2508.8,2508.7,1.2934]
[1747548774410,2.04284,2508.8,2508.7,1.2934]
[1747548779115,1.2459,2508.8,2508.7,2.09038]
[1747548779617,2.04284,2508.8,2508.7,1.2934]
[1747548779817,1.2459,2508.8,2508.7,2.09038]
[1747548780010,1.3195,2508.9,2508.7,2.09038]
[1747548780218,1.2813,2509.3,2508.8,16.2]
[1747548780415,2.12013,2509.2,2509.0,0.79686]
[1747548780710,2.12013,2509.2,2509.1,1.2789]
[1747548782618,0.79685,2509.1,2509.0,3.058]
[1747548782819,2.05595,2509.1,2509.0,3.058]
[1747548785817,2.05595,2509.1,2509.0,3.15018003]
[1747548788216,1.2591,2509.1,2509.0,3.15018003]
[1747548788417,1.3233,2509.2,2509.1,0.79685]
[1747548788619,1.3233,2509.2,2509.1,2.03755]
[1747548788922,2.12012,2509.2,2509.1,2.03755]
[1747548789424,1.3233,2509.2,2509.1,2.03755]
[1747548789720,3.96864709,2509.6,2509.3,0.79679]
[1747548789914,3.96864709,2509.6,2509.4,2.03743]
[1747548789915,2.6832,2509.5,2509.4,2.03743]
[1747548790525,3.47992,2509.5,2509.4,1.2407]
[1747548790723,3.96863709,2509.6,2509.4,2.03745]
[1747548790923,0.79672,2509.5,2509.4,1.2407]
[1747548791126,3.34012,2509.5,2509.4,4.2987]
[1747548791321,2.5434,2509.5,2509.4,4.2987]
[1747548791526,3.17192709,2509.6,2509.4,4.2987]
[1747548791827,3.17192709,2509.6,2509.5,2.14522]
[1747548792018,3.96861709,2509.6,2509.5,1.3485]
[1747548792323,3.17192709,2509.6,2509.5,4.4065]
[1747548792525,3.17192709,2509.6,2509.5,5.20322]
[1747548792725,3.17192709,2509.6,2509.5,13.29222]
[1747548792926,3.17192709,2509.6,2509.5,21.39222]
[1747548793926,1.2789,2509.9,2509.8,0.79663]
[1747548794124,1.2789,2509.9,2509.8,3.058]
[1747548794524,1.2789,2509.9,2509.8,4.3583]
[1747548795822,0.6298,2509.9,2509.8,5.15493]
[1747548796429,0.6298,2509.9,2509.8,4.3583]
[1747548796630,1.4264,2509.9,2509.8,3.058]
[1747548796927,2.7199,2509.9,2509.8,11.157]
[1747548797232,0.6298,2509.9,2509.8,11.95363]
[1747548797434,3.2078,2510.0,2509.9,0.7966]
[1747548797633,5.8262,2510.4,2510.1,0.79652]
[1747548797828,6.62265,2510.4,2510.2,1.3183]
[1747548798032,5.8262,2510.4,2510.2,2.1148]
[1747548798229,5.8262,2510.4,2510.3,0.79647]
[1747548798532,6.62264,2510.4,2510.3,1.3183]
[1747548798925,5.8262,2510.4,2510.3,1.3183]
[1747548799127,6.62264,2510.4,2510.3,4.3763]
[1747548799326,5.8262,2510.4,2510.3,4.3763]
[1747548799831,3.41484,2510.4,2510.3,4.3763]
[1747548801040,3.41484,2510.4,2510.3,3.15018003]
[1747548804036,6.62264,2510.4,2510.3,3.15018003]
[1747548805332,6.62264,2510.4,2510.3,4.45898003]
[1747548805535,3.41484,2510.4,2510.3,4.45898003]
[1747548805727,2.07734,2510.4,2510.3,4.45898003]
[1747548805935,0.6216,2510.4,2510.3,5.25545003]
[1747548806340,0.6216,2510.4,2510.3,4.45898003]
[1747548806641,0.6216,2510.4,2510.3,5.25545003]
[1747548807241,1.41804,2510.4,2510.3,4.45898003]
[1747548810943,2.07604,2510.4,2510.3,4.45898003]
[1747548814449,2.07604,2510.4,2510.3,3.15018003]
[1747548814845,3.31504,2510.4,2510.3,3.15018003]
[1747548817156,3.31504,2510.4,2510.3,0.09218003]
[1747548817346,0.7965,2510.2,2510.1,8.075]
[1747548817542,0.79653,2510.1,2510.0,1.258]
[1747548817747,0.79653,2510.1,2510.0,9.333]
[1747548817949,0.79653,2510.1,2510.0,8.075]
[1747548818354,0.79653,2510.1,2510.0,1.258]
[1747548818556,0.79653,2510.1,2509.8,3.2078]
[1747548818557,0.7966,2509.9,2509.8,11.2828]
[1747548818752,0.7966,2509.9,2509.8,3.2078]
[1747548819150,2.1696,2509.9,2509.8,3.2078]
[1747548820560,2.1696,2509.9,2509.8,4.5528]
[1747548820755,1.373,2509.9,2509.8,5.34943]
[1747548821054,2.1696,2509.9,2509.8,4.5528]
[1747548821962,2.1696,2509.9,2509.8,3.2078]
[1747548824856,1.2886,2510.0,2509.8,3.2078]
[1747548825050,4.00432,2510.2,2509.9,0.7966]
[1747548825361,4.00432,2510.2,2510.0,1.47595]
[1747548825563,4.00432,2510.2,2510.1,1.2983]
[1747548825763,0.79652,2510.2,2510.1,1.2983]
[1747548828568,1.3366,2510.3,2509.8,11.2688]
[1747548828775,1.9606,2510.1,2509.8,11.2688]
[1747548828976,1.43745,2510.1,2509.9,0.79658]
[1747548829274,1.43745,2510.1,2509.9,3.85458]